fUST/lending_fUST_20240904
["ID","MTS","AMOUNT","RATE_DAILY","PERIOD"]
[337055996,1725390632528,-250.0,0.00028515,2]
[337055997,1725390632538,-250.0,0.00028592,2]
[337055998,1725390632548,-250.0,0.00028668,2]
[337055999,1725390632559,-250.0,0.00028744,2]
[337056000,1725390632569,-250.0,0.0002882,2]
[337056001,1725390632579,-250.0,0.00028896,2]
[337056002,1725390632588,-250.0,0.00028972,2]
[337056003,1725390632598,-500.0,0.00029048,11]
[337056004,1725390632607,-250.0,0.00029048,2]
[337056005,1725390632617,-250.0,0.00029124,2]
[337056006,1725390632626,-250.0,0.000292,2]
[337056007,1725390632636,-150.0,0.00029952,2]
[337056008,1725390632645,-150.0,0.00029952,2]
[337056009,1725390632654,-523.0,0.00029952,2]
[337056010,1725390632663,-10000.0,0.0003,15]
[337056011,1725390632672,-602.530061,0.0003,2]
[337056012,1725390632682,-420.0,0.00030109,2]
[337056013,1725390632702,-151.0,0.00031511,5]
[337056014,1725390632712,-3337.15,0.0003179,3]
[337056015,1725390632722,-1000.0,0.0003179,2]
[337056016,1725390632734,-8388.20021565,0.000318,120]
[337056017,1725390632744,-1531.91222862,0.000318,2]
[337056018,1725390632754,-150.01,0.00031872,2]
[337056019,1725390632763,-500.0,0.00031889,2]
[337056020,1725390632776,-266.98676622,0.00031889,2]
[337056021,1725390632786,-500.0,0.00031889,2]
[337056022,1725390632798,-462.26258265,0.00031889,2]
[337056023,1725390632808,-500.0,0.00031889,2]
[337056024,1725390632818,-500.0,0.00031889,2]
[337056025,1725390632828,-437.39326289,0.00031889,2]
[337056026,1725390632837,-292.25510379,0.00031889,2]
[337056027,1725390632847,-500.0,0.00031889,2]
[337056028,1725390632858,-500.0,0.00031889,2]
[337056029,1725390632868,-500.0,0.00031889,2]
[337056030,1725390632879,-500.0,0.00031889,2]
[337056031,1725390632889,-443.09992913,0.00031889,2]
[337056032,1725390632899,-500.0,0.00031889,2]
[337056033,1725390632909,-350.32788951,0.00031889,2]
[337056034,1725390632919,-500.0,0.00031889,2]
[337056035,1725390632929,-495.53754951,0.00031889,2]
[337056036,1725390632938,-500.0,0.00031889,2]
[337056037,1725390632948,-500.0,0.00031889,2]
[337056038,1725390632959,-500.0,0.00031889,2]
[337056039,1725390632970,-500.0,0.00031889,2]
[337056040,1725390632982,-248531.362252,0.0003189,4]
[337056041,1725390632992,-153.0,0.0003189,2]
[337056042,1725390633003,-153.0,0.0003189,2]
[337056043,1725390633016,-153.0,0.0003189,2]
[337056044,1725390633027,-28014.61977535,0.000319,15]
[337056084,1725390638496,-3442.84500305,0.000319,15]
[337056086,1725390638506,-7520.75219815,0.000319,2]
[337056088,1725390638516,-3200.0,0.000319,2]
[337056090,1725390638525,-153.32,0.000319,14]
[337056092,1725390638536,-6683.0827988,0.000319,14]
[337056110,1725390640689,-3885.8903918,0.000319,14]
[337056237,1725391720436,1410.5297035,0.00014,2]
[337056238,1725391720780,21252.43346867,0.0001,2]
[337056239,1725391768134,-403.03318258,0.00023,2]
[337056267,1725391832616,-608.37707604,0.00023,2]
[337056286,1725391838819,-686.31679438,0.00023,2]
[337056287,1725391838829,-300.0,0.00024999,2]
[337056288,1725391838839,-11933.91398152,0.00025,2]
[337056289,1725391838848,-6694.32049718,0.00025,2]
[337056290,1725391838858,-3089.97105393,0.00025,7]
[337056291,1725391838873,-5633.74771002,0.00025,7]
[337056292,1725391838883,-48364.02225132,0.0002509,2]
[337056293,1725391838892,-4077.1188381,0.000269,2]
[337056294,1725391838903,-6685.48429826,0.00027,3]
[337056313,1725391840856,-3862.03616098,0.00027,3]
[337056314,1725391840866,-2780.96,0.0002749,3]
[337056315,1725391840875,-420.0,0.00027499,2]
[337056316,1725391840885,-12432.64537356,0.000275,2]
[337056317,1725391840895,-270.82147365,0.00027671,2]
[337056318,1725391840905,-24900.0,0.00027672,2]
[337056319,1725391840915,-250.0,0.00027929,2]
[337056320,1725391840925,-176.120434,0.00027984,2]
[337056321,1725391840935,-250.0,0.00028006,2]
[337056322,1725391840945,-3000.0,0.00028046,2]
[337056323,1725391840957,-250.0,0.00028082,2]
[337056324,1725391840966,-250.0,0.00028159,2]
[337056325,1725391840975,-250.0,0.00028235,2]
[337056326,1725391840985,-250.0,0.00028312,2]
[337056327,1725391840995,-250.0,0.00028389,2]
[337056328,1725391841005,-250.0,0.00028465,2]
[337056329,1725391841015,-250.0,0.00028542,2]
[337056330,1725391841026,-1021.16027816,0.000286,120]
[337056331,1725391841035,-250.0,0.00028619,2]
[337056332,1725391841045,-250.0,0.00028695,2]
[337056333,1725391841058,-250.0,0.00028772,2]
[337056334,1725391841068,-47729.79277131,0.000288,2]
[337056335,1725391841078,-250.0,0.00028848,2]
[337056336,1725391841087,-250.0,0.00028925,2]
[337056337,1725391841099,-250.0,0.00029002,2]
[337056338,1725391841109,-250.0,0.00029078,2]
[337056339,1725391841118,-250.0,0.00029155,2]
[337056340,1725391841130,-250.0,0.00029231,2]
[337056341,1725391841140,-250.0,0.00029308,2]
[337056342,1725391841150,-250.0,0.00029385,2]
[337056343,1725391841160,-523.0,0.00029545,2]
[337056344,1725391841171,-150.0,0.00029545,2]
[337056345,1725391841181,-572.403558,0.0003,2]
[337056346,1725391841190,-587.0,0.00030249,2]
[337056347,1725391841200,-208.0368303,0.00030405,2]
[337056348,1725391841210,-208.0368303,0.00030405,2]
[337056349,1725391841220,-153.0,0.00030466,2]
[337056350,1725391841229,-153.0,0.00030466,2]
[337056351,1725391841239,-153.0,0.00030466,2]
[337056352,1725391841248,-3200.0,0.00030865,2]
[337056353,1725391841257,-405.8689842,0.00031078,2]
[337056354,1725391841267,-153.0,0.00031078,2]
[337056355,1725391841276,-208.0368303,0.00031078,2]
[337056356,1725391841287,-208.0368303,0.00031078,2]
[337056357,1725391841296,-208.0368303,0.00031078,2]
[337056358,1725391841306,-208.0368303,0.00031078,2]
[337056359,1725391841315,-208.0368303,0.00031227,2]
[337056360,1725391841325,-153.0,0.00031342,2]
[337056361,1725391841337,-153.0,0.00031342,2]
[337056362,1725391841347,-153.0,0.00031342,2]
[337056363,1725391841358,-153.0,0.00031342,2]
[337056364,1725391841370,-153.0,0.00031342,2]
[337056365,1725391841379,-277.1513394,0.00031342,2]
[337056366,1725391841390,-153.0,0.0003137,2]
[337056367,1725391841400,-335.43621019,0.00031507,2]
[337056368,1725391841411,-335.43621019,0.00031644,2]
[337056369,1725391841422,-4077.11883806,0.00031653,2]
[337056370,1725391841432,-153.05428364,0.000317,2]
[337056371,1725391841444,-153.05428362,0.00031725,2]
[337056372,1725391841457,-153.05428362,0.0003175,2]
[337056373,1725391841467,-1000.0,0.00031763,2]
[337056374,1725391841476,-153.05428362,0.00031775,2]
[337056375,1725391841486,-335.43621019,0.00031781,2]
[337056376,1725391841498,-39700.40308343,0.0003179,4]
[337056386,1725391843571,-208.0368303,0.00030405,2]
[337056387,1725391843582,-73.68368405,0.0003179,4]
[337056465,1725393031599,-200.0,0.000205,7]
[337056468,1725393031610,-110.83911,0.00021,7]
[337056469,1725393031622,-89.16089,0.00021,7]
[337056471,1725393031631,-200.0,0.000215,7]
[337056472,1725393031640,-169.602249,0.00023176,2]
[337056473,1725393031650,-309.98217,0.00023291,2]
[337056474,1725393031659,-250.0,0.00023593,2]
[337056475,1725393031669,-3000.0,0.00024577,2]
[337056476,1725393031678,-300.0,0.00024714,2]
[337056477,1725393031687,-600.0,0.00024715,8]
[337056478,1725393031696,-600.0,0.00024715,8]
[337056479,1725393031705,-611.48193832,0.00024715,8]
[337056480,1725393031714,-24900.0,0.00025782,2]
[337056481,1725393031723,-3395.09163449,0.0002588,2]
[337056482,1725393031733,-484.7348308,0.0002598,2]
[337056483,1725393031742,-600.0,0.00026044,12]
[337056484,1725393031752,-250.0,0.0002607,2]
[337056485,1725393031761,-250.0,0.00026142,2]
[337056486,1725393031771,-250.0,0.00026213,2]
[337056487,1725393031780,-250.0,0.00026285,2]
[337056488,1725393031789,-250.0,0.00026356,2]
[337056489,1725393031799,-250.0,0.00026428,2]
[337056490,1725393031808,-250.0,0.00026499,2]
[337056491,1725393031817,-250.0,0.00026571,2]
[337056492,1725393031826,-250.0,0.00026642,2]
[337056493,1725393031836,-250.0,0.00026714,2]
[337056494,1725393031847,-250.0,0.00026785,2]
[337056495,1725393031857,-250.0,0.00026857,2]
[337056496,1725393031867,-250.0,0.00026928,2]
[337056497,1725393031876,-250.0,0.00027,2]
[337056498,1725393031886,-250.0,0.00027071,2]
[337056499,1725393031895,-250.0,0.00027143,2]
[337056500,1725393031906,-420.0,0.00027185,2]
[337056501,1725393031916,-250.0,0.00027214,2]
[337056502,1725393031925,-250.0,0.00027286,2]
[337056503,1725393031935,-250.0,0.00027357,2]
[337056504,1725393031944,-250.0,0.00027429,2]
[337056505,1725393031953,-150.0,0.00029473,2]
[337056506,1725393031962,-523.0,0.00029473,2]
[337056507,1725393031972,-587.0,0.00029903,2]
[337056508,1725393031980,-543.78338,0.0003,2]
[337056509,1725393031990,-3395.09163444,0.00030779,2]
[337056510,1725393031998,-742.9998258,0.00031062,2]
[337056511,1725393032115,-153.0,0.0003137,2]
[337056512,1725393032125,-153.0,0.0003137,2]
[337056513,1725393032135,-153.0,0.0003137,2]
[337056514,1725393032144,-600.0,0.00031624,59]
[337056515,1725393032156,-204.07237816,0.00031679,2]
[337056516,1725393032165,-933.10371031,0.00031686,2]
[337056541,1725393037781,-66.89628969,0.00031686,2]
[337056543,1725393037791,-1783.61,0.00031766,3]
[337056545,1725393037801,-1486.34,0.00031766,3]
[337056547,1725393037811,-55085.652115,0.00031776,4]
[337056550,1725393037822,-500.0,0.00031779,2]
[337056552,1725393037831,-500.0,0.00031779,2]
[337056554,1725393037842,-500.0,0.00031779,2]
[337056556,1725393037852,-500.0,0.00031779,2]
[337056558,1725393037862,-500.0,0.00031779,2]
[337056560,1725393037873,-500.0,0.00031779,2]
[337056562,1725393037883,-346.93153401,0.00031779,2]
[337056564,1725393037893,-500.0,0.00031779,2]
[337056566,1725393037904,-500.0,0.00031779,2]
[337056568,1725393037914,-500.0,0.00031779,2]
[337056570,1725393037923,-500.0,0.00031779,2]
[337056572,1725393037932,-500.0,0.00031779,2]
[337056574,1725393037942,-27542.8260575,0.0003178,4]
[337056576,1725393037952,-204.07237816,0.0003178,2]
[337056578,1725393037961,-27542.8260575,0.0003178,4]
[337056580,1725393037971,-76005.71773857,0.00031786,15]
[337056582,1725393037980,-21197.94268661,0.00031786,7]
[337056585,1725393037995,-82222.97162049,0.00031786,7]
[337056587,1725393038004,-27542.8260575,0.0003179,4]
[337056589,1725393038014,-1378.72100574,0.0003179,2]
[337056591,1725393038023,-204.57857265,0.00031799,2]
[337056593,1725393038032,-500.0,0.00031799,2]
[337056595,1725393038041,-500.0,0.00031799,2]
[337056597,1725393038050,-510.16995039,0.00031799,2]
[337056599,1725393038059,-500.0,0.00031799,2]
[337056601,1725393038069,-500.0,0.00031799,2]
[337056617,1725393038209,-500.0,0.00031799,2]
[337056619,1725393038221,-500.0,0.00031799,2]
[337056621,1725393038230,-500.0,0.00031799,2]
[337056623,1725393038240,-520.28046305,0.00031799,2]
[337056625,1725393038250,-50148.0,0.000318,2]
[337056627,1725393038259,-28172.27340172,0.000318,120]
[337056809,1725393042915,-2936.22026758,0.000318,120]
[337056810,1725393043055,-8.22675231,0.000318,120]
[337056915,1725393045676,-8997.30054969,0.000318,120]
[337056916,1725393045686,-151.0,0.00031853,7]
[337056917,1725393045695,-27542.8260575,0.00031853,4]
[337056918,1725393045705,-228.48701,0.00031863,7]
[337056919,1725393045714,-228.48701,0.00031863,7]
[337056920,1725393045724,-31952.73019185,0.00031863,10]
[337056921,1725393045736,-1079.32997976,0.00031863,10]
[337056922,1725393045747,-953.012298,0.00031863,10]
[337056974,1725394231788,-1509.4252531,0.00025858,2]
[337056976,1725394231799,-666.05788,0.00025982,2]
[337056977,1725394231814,-297.798477,0.00026117,2]
[337056978,1725394231823,-70.4783899,0.0002631,2]
[337056979,1725394231835,-1864.01143514,0.0002631,2]
[337056993,1725394238025,-749.25875703,0.0002631,2]
[337057007,1725394242906,-316.25141793,0.0002631,2]
[337057008,1725394242916,-2546.31872583,0.00027361,2]
[337057009,1725394242926,-300.0,0.00027397,2]
[337057010,1725394242936,-2634.22695946,0.000274,2]
[337057011,1725394242947,-454.89663029,0.000274,2]
[337057069,1725395438181,-2219.770386,0.00022884,2]
[337057070,1725395438192,-3907.12787004,0.00023,2]
[337057071,1725395438201,-250.0,0.0002342,2]
[337057072,1725395438212,-250.0,0.00023484,2]
[337057073,1725395438224,-250.0,0.00023549,2]
[337057074,1725395438236,-250.0,0.00023613,2]
[337057075,1725395438247,-250.0,0.00023677,2]
[337057076,1725395438259,-250.0,0.00023741,2]
[337057077,1725395438268,-250.0,0.00023805,2]
[337057078,1725395438278,-3000.0,0.00023836,2]
[337057079,1725395438289,-250.0,0.0002387,2]
[337057080,1725395438299,-169.602249,0.00023913,2]
[337057081,1725395438309,-250.0,0.00023934,2]
[337057082,1725395438318,-250.0,0.00023998,2]
[337057083,1725395438328,-300.0,0.0002406,2]
[337057084,1725395438338,-300.0,0.00024061,2]
[337057085,1725395438348,-250.0,0.00024062,2]
[337057086,1725395438358,-250.0,0.00024127,2]
[337057087,1725395438367,-297.7984775,0.00024138,2]
[337057088,1725395438377,-24900.0,0.00024159,2]
[337057089,1725395438387,-250.0,0.00024191,2]
[337057090,1725395438396,-250.0,0.00024255,2]
[337057091,1725395438406,-250.0,0.00024319,2]
[337057092,1725395438415,-250.0,0.00024383,2]
[337057093,1725395438427,-250.0,0.00024448,2]
[337057094,1725395438438,-250.0,0.00024512,2]
[337057095,1725395438447,-250.0,0.00024576,2]
[337057096,1725395438456,-250.0,0.0002464,2]
[337057097,1725395438466,-166.0,0.00024932,2]
[337057098,1725395438475,-166.0,0.00025,2]
[337057099,1725395438485,-206.33031267,0.00025651,2]
[337057100,1725395438494,-166.0,0.0002589,2]
[337057101,1725395438505,-420.0,0.0002609,2]
[337057102,1725395438514,-3000.0,0.000264,2]
[337057103,1725395438524,-3000.0,0.0002641,2]
[337057104,1725395438653,-3000.0,0.0002642,2]
[337057105,1725395438674,-3000.0,0.0002643,2]
[337057106,1725395438684,-3000.0,0.0002644,2]
[337057107,1725395438693,-3000.0,0.0002645,2]
[337057108,1725395438703,-3000.0,0.0002646,2]
[337057109,1725395438712,-420.0,0.00026467,2]
[337057110,1725395438722,-3000.0,0.0002647,2]
[337057111,1725395438733,-3000.0,0.0002648,2]
[337057112,1725395438745,-3000.0,0.0002649,2]
[337057113,1725395438757,-3000.0,0.000265,2]
[337057114,1725395438767,-3000.0,0.0002651,2]
[337057115,1725395438777,-3000.0,0.0002652,2]
[337057116,1725395438786,-3000.0,0.0002653,2]
[337057117,1725395438796,-3000.0,0.0002654,2]
[337057118,1725395438806,-3000.0,0.0002655,2]
[337057119,1725395438815,-2866.4,0.0002655,3]
[337057120,1725395438826,-3000.0,0.0002656,2]
[337057121,1725395438837,-714.7,0.0002656,3]
[337057122,1725395438848,-3439.68,0.0002656,3]
[337057123,1725395438858,-3000.0,0.0002657,2]
[337057124,1725395438868,-500.0,0.00026578,2]
[337057125,1725395438878,-500.0,0.00026578,2]
[337057126,1725395438889,-500.0,0.00026578,2]
[337057127,1725395438900,-500.0,0.00026578,2]
[337057128,1725395438909,-284.69315341,0.00026578,2]
[337057129,1725395438919,-500.0,0.00026578,2]
[337057130,1725395438929,-500.0,0.00026578,2]
[337057131,1725395438939,-3000.0,0.0002658,2]
[337057132,1725395438949,-1206.49645,0.0002658,7]
[337057133,1725395438959,-1206.49645,0.0002658,7]
[337057134,1725395438968,-23650.860882,0.0002658,3]
[337057135,1725395438978,-111111.111111,0.0002658,2]
[337057136,1725395438988,-3000.0,0.0002659,2]
[337057137,1725395438998,-3000.0,0.000266,2]
[337057138,1725395439009,-200.49884425,0.00026609,2]
[337057139,1725395439019,-356.13371933,0.00026609,2]
[337057140,1725395439033,-500.0,0.00026609,2]
[337057141,1725395439044,-500.0,0.00026609,2]
[337057142,1725395439054,-500.0,0.00026609,2]
[337057143,1725395439064,-500.0,0.00026609,2]
[337057144,1725395439073,-500.0,0.00026609,2]
[337057145,1725395439083,-500.0,0.00026609,2]
[337057146,1725395439092,-500.0,0.00026609,2]
[337057147,1725395439102,-500.0,0.00026609,2]
[337057148,1725395439112,-500.0,0.00026609,2]
[337057149,1725395439122,-500.0,0.00026609,2]
[337057150,1725395439131,-258.52034221,0.00026609,2]
[337057151,1725395439141,-500.0,0.00026609,2]
[337057152,1725395439150,-500.0,0.00026609,2]
[337057153,1725395439160,-227.83797323,0.00026609,2]
[337057154,1725395439171,-500.0,0.00026609,2]
[337057155,1725395439181,-4652.605219,0.0002661,2]
[337057156,1725395439192,-166.0,0.00027185,2]
[337057157,1725395439202,-5217.15325681,0.00027313,2]
[337057158,1725395439212,-176.120434,0.00027511,2]
[337057159,1725395439225,-500.0,0.00027964,2]
[337057160,1725395439237,-419.0,0.00028292,2]
[337057161,1725395439247,-500.0,0.00028315,2]
[337057162,1725395439260,-1000.0,0.00028512,2]
[337057163,1725395439271,-1000.0,0.00028863,2]
[337057164,1725395439281,-166.0,0.00028997,2]
[337057165,1725395439291,-587.0,0.00029114,2]
[337057166,1725395439302,-1432.33793379,0.00029289,2]
[337057167,1725395439312,-500.0,0.00029373,5]
[337057168,1725395439321,-63539.28776549,0.00029378,15]
[337057171,1725395440201,-600.0,0.0002498,9]
[337057172,1725395440212,-2388.66,0.0002656,3]
[337057173,1725395440224,-2570.00932501,0.00029378,15]
[337057174,1725395440239,-33452.35316794,0.00029378,15]
[337057175,1725395440250,-3235.55380127,0.00029378,3]
[337057177,1725395443119,-271.77103122,0.00029378,3]
[337057192,1725396384894,-3000.0,0.00023417,2]
[337057193,1725396385004,-251.0,0.00023627,2]
[337057194,1725396385034,-300.0,0.0002364,2]
[337057195,1725396385057,-300.0,0.0002364,2]
[337057196,1725396385081,-24900.0,0.00023641,2]
[337057197,1725396385105,-157.813356,0.00023968,2]
[337057198,1725396385128,-250.0,0.00024493,2]
[337057199,1725396385152,-250.0,0.0002456,2]
[337057200,1725396385176,-250.0,0.00024627,2]
[337057201,1725396385200,-250.0,0.00024694,2]
[337057202,1725396385224,-5811.09747482,0.00024729,2]
[337057203,1725396385249,-250.0,0.00024762,2]
[337057204,1725396385272,-250.0,0.00024829,2]
[337057205,1725396385295,-250.0,0.00024896,2]
[337057206,1725396385319,-250.0,0.00024963,2]
[337057207,1725396385341,-250.0,0.0002503,2]
[337057208,1725396385364,-250.0,0.00025097,2]
[337057209,1725396385387,-250.0,0.00025165,2]
[337057210,1725396385409,-3000.0,0.000252,2]
[337057211,1725396385431,-3000.0,0.0002521,2]
[337057212,1725396385453,-3000.0,0.0002522,2]
[337057213,1725396385476,-3000.0,0.0002523,2]
[337057214,1725396385501,-250.0,0.00025232,2]
[337057215,1725396385526,-3000.0,0.0002524,2]
[337057216,1725396385549,-3000.0,0.0002525,2]
[337057217,1725396385572,-5990.387216,0.0002526,2]
[337057218,1725396385600,-250.0,0.00025299,2]
[337057219,1725396385630,-250.0,0.00025366,2]
[337057220,1725396385662,-250.0,0.00025433,2]
[337057221,1725396385688,-250.0,0.000255,2]
[337057222,1725396385713,-250.0,0.00025568,2]
[337057223,1725396385737,-250.0,0.00025635,2]
[337057224,1725396385760,-250.0,0.00025702,2]
[337057225,1725396385784,-250.0,0.00025769,2]
[337057226,1725396385809,-420.0,0.00026004,2]
[337057227,1725396385832,-3000.0,0.000264,2]
[337057228,1725396385856,-204.07237816,0.00026407,2]
[337057229,1725396385881,-3000.0,0.0002641,2]
[337057230,1725396385906,-3000.0,0.0002642,2]
[337057231,1725396385931,-3000.0,0.0002643,2]
[337057232,1725396385956,-3000.0,0.0002644,2]
[337057233,1725396385981,-3000.0,0.0002645,2]
[337057234,1725396386006,-3000.0,0.0002646,2]
[337057235,1725396386030,-3000.0,0.0002647,2]
[337057236,1725396386055,-500.0,0.00026473,2]
[337057237,1725396386079,-500.0,0.00026473,2]
[337057238,1725396386102,-2074.98,0.00026479,3]
[337057239,1725396386125,-1729.15,0.00026479,3]
[337057240,1725396386150,-3000.0,0.0002648,2]
[337057241,1725396386172,-345.08,0.0002648,3]
[337057242,1725396386320,-500.0,0.00026489,2]
[337057243,1725396386344,-500.0,0.00026489,2]
[337057244,1725396386366,-500.0,0.00026489,2]
[337057245,1725396386389,-500.0,0.00026489,2]
[337057246,1725396386413,-500.0,0.00026489,2]
[337057247,1725396386436,-170.89330773,0.00026489,2]
[337057248,1725396386459,-500.0,0.00026489,2]
[337057249,1725396386482,-500.0,0.00026489,2]
[337057250,1725396386511,-500.0,0.00026489,2]
[337057251,1725396386534,-500.0,0.00026489,2]
[337057252,1725396386559,-500.0,0.00026489,2]
[337057253,1725396386587,-500.0,0.00026489,2]
[337057254,1725396386610,-160.36324385,0.00026489,2]
[337057255,1725396386633,-500.0,0.00026489,2]
[337057256,1725396386656,-500.0,0.00026489,2]
[337057257,1725396386680,-500.0,0.00026489,2]
[337057258,1725396386704,-500.0,0.00026489,2]
[337057259,1725396386728,-500.0,0.00026489,2]
[337057260,1725396386757,-500.0,0.00026489,2]
[337057261,1725396386785,-508.66261791,0.00026489,2]
[337057262,1725396386810,-500.0,0.00026489,2]
[337057263,1725396386834,-500.0,0.00026489,2]
[337057264,1725396386857,-500.0,0.00026489,2]
[337057265,1725396386901,-500.0,0.00026489,2]
[337057266,1725396386955,-500.0,0.00026489,2]
[337057267,1725396387008,-500.0,0.00026489,2]
[337057268,1725396387055,-402.88089595,0.00026489,2]
[337057269,1725396387105,-500.0,0.00026489,2]
[337057270,1725396387149,-500.0,0.00026489,2]
[337057271,1725396387192,-500.0,0.00026489,2]
[337057272,1725396387245,-500.0,0.00026489,2]
[337057273,1725396387289,-500.0,0.00026489,2]
[337057274,1725396387330,-500.0,0.00026489,2]
[337057275,1725396387372,-500.0,0.00026489,2]
[337057276,1725396387412,-500.0,0.00026489,2]
[337057277,1725396387451,-500.0,0.00026489,2]
[337057278,1725396387497,-500.0,0.00026489,2]
[337057279,1725396387541,-500.0,0.00026489,2]
[337057280,1725396387581,-500.0,0.00026489,2]
[337057281,1725396387623,-500.0,0.00026489,2]
[337057282,1725396387664,-500.0,0.00026489,2]
[337057283,1725396387705,-500.0,0.00026489,2]
[337057284,1725396387753,-500.0,0.00026489,2]
[337057285,1725396387793,-500.0,0.00026489,2]
[337057286,1725396387832,-500.0,0.00026489,2]
[337057287,1725396387857,-500.0,0.00026489,2]
[337057288,1725396388057,-500.0,0.00026489,2]
[337057289,1725396388081,-500.0,0.00026489,2]
[337057290,1725396388105,-500.0,0.00026489,2]
[337057291,1725396388129,-500.0,0.00026489,2]
[337057292,1725396388153,-500.0,0.00026489,2]
[337057293,1725396388178,-500.0,0.00026489,2]
[337057294,1725396388202,-500.0,0.00026489,2]
[337057295,1725396388226,-500.0,0.00026489,2]
[337057296,1725396388250,-500.0,0.00026489,2]
[337057297,1725396388274,-200.49884425,0.00026489,2]
[337057298,1725396388298,-356.13371933,0.00026489,2]
[337057299,1725396388321,-500.0,0.00026489,2]
[337057300,1725396388344,-258.52034221,0.00026489,2]
[337057301,1725396388367,-500.0,0.00026489,2]
[337057302,1725396388391,-500.0,0.00026489,2]
[337057303,1725396388414,-500.0,0.00026489,2]
[337057304,1725396388437,-500.0,0.00026489,2]
[337057305,1725396388460,-500.0,0.00026489,2]
[337057306,1725396388482,-500.0,0.00026489,2]
[337057307,1725396388507,-500.0,0.00026489,2]
[337057308,1725396388529,-230.46971542,0.00026489,2]
[337057309,1725396388552,-500.0,0.00026489,2]
[337057310,1725396388576,-500.0,0.00026489,2]
[337057311,1725396388599,-500.0,0.00026489,2]
[337057312,1725396388621,-500.0,0.00026489,2]
[337057313,1725396388644,-500.0,0.00026489,2]
[337057314,1725396388667,-300.0,0.00026489,2]
[337057315,1725396388689,-38002.85886928,0.0002649,15]
[337057316,1725396388714,-95557.77889965,0.0002649,15]
[337057317,1725396388738,-57512.5573129,0.0002649,3]
[337057318,1725396388762,-1250044.80180654,0.0002649,2]
[337057321,1725396429289,-159.6,0.00026137,2]
[337057322,1725396429308,-221.77631105,0.0002639,2]
[337057323,1725396429328,-1440.95,0.00026479,3]
[337057324,1725396429348,-300.0,0.00026479,2]
[337057325,1725396429368,-1615.79,0.0002648,3]
[337057326,1725396429388,-2844.75,0.0002648,3]
[337057327,1725396429408,-2370.63,0.0002648,3]
[337057328,1725396429430,-500.0,0.00026489,2]
[337057329,1725396429451,-500.0,0.00026489,2]
[337057330,1725396429472,-500.0,0.00026489,2]
[337057331,1725396429492,-500.0,0.00026489,2]
[337057332,1725396429514,-500.0,0.00026489,2]
[337057333,1725396429543,-500.0,0.00026489,2]
[337057334,1725396429568,-262.23838061,0.00026489,2]
[337057335,1725396429590,-500.0,0.00026489,2]
[337057336,1725396429617,-500.0,0.00026489,2]
[337057337,1725396429641,-500.0,0.00026489,2]
[337057338,1725396429663,-500.0,0.00026489,2]
[337057339,1725396429684,-500.0,0.00026489,2]
[337057340,1725396429706,-500.0,0.00026489,2]
[337057341,1725396429731,-211.20577518,0.00026489,2]
[337057342,1725396429754,-500.0,0.00026489,2]
[337057343,1725396429775,-500.0,0.00026489,2]
[337057344,1725396429795,-181.27700519,0.00026489,2]
[337057345,1725396429817,-500.0,0.00026489,2]
[337057346,1725396429840,-500.0,0.00026489,2]
[337057347,1725396429864,-352.89870816,0.00026489,2]